Workbook

Sheet DRUŻYNY
B1: UZUPEŁNIĆ NAJWYŻSZE WYNIKI NA DANYCH ZAWODACH: | O1: FT
B2: HFT1 | C2: 96 | D2: pkt | O2: zdob pkt: | P2: 45
B3: HFT2 | C3: 91 | D3: pkt | G3: max: | O3: cał. chyb.: | P3: 0
B4: FT | C4: 95 | D4: pkt | G4: =MAX(G27,G15,G33,G39,G57,G9,G69,G21,G63,G45,G51,G75,G81) -> 2.916337719 | O4: do wpisania: | P4: =P2*2+(40-P2)-P3 -> 85
B5: JM | C5: 1 | D5: pkt
B6: JS | C6: 1 | D6: pkt
A8: Nr | B8: Nazwa drużyny | C8: Skład drużyny | D8: kat. | E8: % | F8: pkt | G8: Suma 3 zawodników | H8: Suma do Pucharu
A9: 1 | B9: JURA TEAM | C9: Paweł Świtkowski | D9: FT | E9: =IF(D9=$B$2,F9/$C$2,IF(D9=$B$4,F9/$C$4,IF(D9=$B$5,F9/$C$5,IF(D9=$B$6,F9/$C$6,IF(D9=$B$3,F9/$C$3,"ERROR!!!"))))) -> 1 | F9: 95 | G9: =LARGE(E9:E13,1)+LARGE(E9:E13,2)+LARGE(E9:E13,3) -> 2.916337719 | H9: =G9/$G$4 -> 1
C10: Marcin Krajs | D10: FT | E10: =IF(D10=$B$2,F10/$C$2,IF(D10=$B$4,F10/$C$4,IF(D10=$B$5,F10/$C$5,IF(D10=$B$6,F10/$C$6,IF(D10=$B$3,F10/$C$3,"ERROR!!!"))))) -> 0.9684210526 | F10: 92
C11: Alicja Zając | D11: HFT1 | E11: =IF(D11=$B$2,F11/$C$2,IF(D11=$B$4,F11/$C$4,IF(D11=$B$5,F11/$C$5,IF(D11=$B$6,F11/$C$6,IF(D11=$B$3,F11/$C$3,"ERROR!!!"))))) -> 0.9479166667 | F11: 91
C12: Krzysztof Zając | D12: HFT1 | E12: =IF(D12=$B$2,F12/$C$2,IF(D12=$B$4,F12/$C$4,IF(D12=$B$5,F12/$C$5,IF(D12=$B$6,F12/$C$6,IF(D12=$B$3,F12/$C$3,"ERROR!!!"))))) -> 0.8958333333 | F12: 86
C13: Radosław Koclęga | D13: FT | E13: 0.7894736842 | F13: 75
K14: =B9 -> JURA TEAM | L14: =G9 -> 2.916337719
A15: 2 | B15: DGST LOK Beaver | C15: Bartłomiej Cywiński | D15: HFT1 | E15: =IF(D15=$B$2,F15/$C$2,IF(D15=$B$4,F15/$C$4,IF(D15=$B$5,F15/$C$5,IF(D15=$B$6,F15/$C$6,IF(D15=$B$3,F15/$C$3,"ERROR!!!"))))) -> 0.8854166667 | F15: 85 | G15: =LARGE(E15:E19,1)+LARGE(E15:E19,2)+LARGE(E15:E19,3) -> 2.841923318 | H15: =G15/$G$4 -> 0.9744836132 | K15: =B21 -> AUTOS WIKING | L15: =G21 -> 2.864583333
C16: Paweł Wietrzykowski | D16: HFT1 | E16: =IF(D16=$B$2,F16/$C$2,IF(D16=$B$4,F16/$C$4,IF(D16=$B$5,F16/$C$5,IF(D16=$B$6,F16/$C$6,IF(D16=$B$3,F16/$C$3,"ERROR!!!"))))) -> 0.8229166667 | F16: 79 | K16: =B63 -> 0 | L16: =G63 -> 0
C17: Maciej Fałkowski | D17: FT | E17: =IF(D17=$B$2,F17/$C$2,IF(D17=$B$4,F17/$C$4,IF(D17=$B$5,F17/$C$5,IF(D17=$B$6,F17/$C$6,IF(D17=$B$3,F17/$C$3,"ERROR!!!"))))) -> 0.8631578947 | F17: 82 | K17: =B45 -> Orzoł | L17: =G45 -> 1.802083333
C18: Sławek Opiela | D18: FT | E18: =IF(D18=$B$2,F18/$C$2,IF(D18=$B$4,F18/$C$4,IF(D18=$B$5,F18/$C$5,IF(D18=$B$6,F18/$C$6,IF(D18=$B$3,F18/$C$3,"ERROR!!!"))))) -> 0.9894736842 | F18: 94 | K18: =B51 -> 0 | L18: =G51 -> 0
C19: Tomasz Widła | D19: HFT2 | E19: =IF(D19=$B$2,F19/$C$2,IF(D19=$B$4,F19/$C$4,IF(D19=$B$5,F19/$C$5,IF(D19=$B$6,F19/$C$6,IF(D19=$B$3,F19/$C$3,"ERROR!!!"))))) -> 0.967032967 | F19: 88 | K19: =B75 -> 0 | L19: =G75 -> 0
A21: 3 | B21: AUTOS WIKING | C21: Paweł Buchalski | D21: HFT1 | E21: =IF(D21=$B$2,F21/$C$2,IF(D21=$B$4,F21/$C$4,IF(D21=$B$5,F21/$C$5,IF(D21=$B$6,F21/$C$6,IF(D21=$B$3,F21/$C$3,"ERROR!!!"))))) -> 0.8958333333 | F21: 86 | G21: =LARGE(E21:E25,1)+LARGE(E21:E25,2)+LARGE(E21:E25,3) -> 2.864583333 | H21: =G21/$G$4 -> 0.9822536376
C22: Mirosław Maciejewicz | D22: HFT1 | E22: =IF(D22=$B$2,F22/$C$2,IF(D22=$B$4,F22/$C$4,IF(D22=$B$5,F22/$C$5,IF(D22=$B$6,F22/$C$6,IF(D22=$B$3,F22/$C$3,"ERROR!!!"))))) -> 0.9270833333 | F22: 89
C23: Krzysztof Szałkowski | D23: HFT1 | E23: =IF(D23=$B$2,F23/$C$2,IF(D23=$B$4,F23/$C$4,IF(D23=$B$5,F23/$C$5,IF(D23=$B$6,F23/$C$6,IF(D23=$B$3,F23/$C$3,"ERROR!!!"))))) -> 1 | F23: 96
C24: Tomasz Cielepak | D24: FT | E24: =IF(D24=$B$2,F24/$C$2,IF(D24=$B$4,F24/$C$4,IF(D24=$B$5,F24/$C$5,IF(D24=$B$6,F24/$C$6,IF(D24=$B$3,F24/$C$3,"ERROR!!!"))))) -> 0.8736842105 | F24: 83
C25: Grzegorz Lisowski | D25: HFT1 | E25: =IF(D25=$B$2,F25/$C$2,IF(D25=$B$4,F25/$C$4,IF(D25=$B$5,F25/$C$5,IF(D25=$B$6,F25/$C$6,IF(D25=$B$3,F25/$C$3,"ERROR!!!"))))) -> 0.9375 | F25: 90
A27: 4 | B27: WKFT | C27: Robert Szambelan | D27: FT | E27: =IF(D27=$B$2,F27/$C$2,IF(D27=$B$4,F27/$C$4,IF(D27=$B$5,F27/$C$5,IF(D27=$B$6,F27/$C$6,IF(D27=$B$3,F27/$C$3,"ERROR!!!"))))) -> 0.9263157895 | F27: 88 | G27: =LARGE(E27:E31,1)+LARGE(E27:E31,2)+LARGE(E27:E31,3) -> 2.915789474 | H27: =G27/$G$4 -> 0.9998120089 | K27: =B27 -> WKFT | L27: =G27 -> 2.915789474
C28: Janusz Pelucha | D28: FT | E28: =IF(D28=$B$2,F28/$C$2,IF(D28=$B$4,F28/$C$4,IF(D28=$B$5,F28/$C$5,IF(D28=$B$6,F28/$C$6,IF(D28=$B$3,F28/$C$3,"ERROR!!!"))))) -> 0.9684210526 | F28: 92 | K28: =B15 -> DGST LOK Beaver | L28: =G15 -> 2.841923318
C29: Radosław Rozum | D29: FT | E29: =IF(D29=$B$2,F29/$C$2,IF(D29=$B$4,F29/$C$4,IF(D29=$B$5,F29/$C$5,IF(D29=$B$6,F29/$C$6,IF(D29=$B$3,F29/$C$3,"ERROR!!!"))))) -> 0.9473684211 | F29: 90 | K29: =B33 -> SG3M | L29: =G33 -> 2.73870614
C30: Robert Kosicki | D30: HFT2 | E30: =IF(D30=$B$2,F30/$C$2,IF(D30=$B$4,F30/$C$4,IF(D30=$B$5,F30/$C$5,IF(D30=$B$6,F30/$C$6,IF(D30=$B$3,F30/$C$3,"ERROR!!!"))))) -> 0.8901098901 | F30: 81 | K30: =B39 -> WSST | L30: =G39 -> 2.297916667
C31: Marceli Kotkowski | D31: FT | E31: 1 | F31: 95 | K31: =B57 -> 0 | L31: =G57 -> 0
K32: =#REF! ->  | L32: =G81 -> 0
A33: 5 | B33: SG3M | C33: Robert Wróbel | D33: HFT1 | E33: =IF(D33=$B$2,F33/$C$2,IF(D33=$B$4,F33/$C$4,IF(D33=$B$5,F33/$C$5,IF(D33=$B$6,F33/$C$6,IF(D33=$B$3,F33/$C$3,"ERROR!!!"))))) -> 0.9375 | F33: 90 | G33: =LARGE(E33:E37,1)+LARGE(E33:E37,2)+LARGE(E33:E37,3) -> 2.73870614 | H33: =G33/$G$4 -> 0.9390908749 | K33: =#REF! ->  | L33: =#REF! -> 
C34: Dobrosław Dudziak | D34: HFT1 | E34: =IF(D34=$B$2,F34/$C$2,IF(D34=$B$4,F34/$C$4,IF(D34=$B$5,F34/$C$5,IF(D34=$B$6,F34/$C$6,IF(D34=$B$3,F34/$C$3,"ERROR!!!"))))) -> 0.7708333333 | F34: 74 | K34: =#REF! ->  | L34: =#REF! -> 
C35: Piotr Remiszewski | D35: FT | E35: =IF(D35=$B$2,F35/$C$2,IF(D35=$B$4,F35/$C$4,IF(D35=$B$5,F35/$C$5,IF(D35=$B$6,F35/$C$6,IF(D35=$B$3,F35/$C$3,"ERROR!!!"))))) -> 0.9157894737 | F35: 87 | K35: =#REF! ->  | L35: =#REF! -> 
C36: Aleksandra Wieloszyńska | D36: HFT1 | E36: =IF(D36=$B$2,F36/$C$2,IF(D36=$B$4,F36/$C$4,IF(D36=$B$5,F36/$C$5,IF(D36=$B$6,F36/$C$6,IF(D36=$B$3,F36/$C$3,"ERROR!!!"))))) -> 0.8854166667 | F36: 85 | K36: =#REF! ->  | L36: =#REF! -> 
C37: Arkadiusz Zacharzewski | D37: HFT1 | E37: =IF(D37=$B$2,F37/$C$2,IF(D37=$B$4,F37/$C$4,IF(D37=$B$5,F37/$C$5,IF(D37=$B$6,F37/$C$6,IF(D37=$B$3,F37/$C$3,"ERROR!!!"))))) -> 0.8541666667 | F37: 82 | K37: =#REF! ->  | L37: =#REF! -> 
K38: =#REF! ->  | L38: =#REF! -> 
A39: 6 | B39: WSST | D39: HFT2 | E39: =IF(D39=$B$2,F39/$C$2,IF(D39=$B$4,F39/$C$4,IF(D39=$B$5,F39/$C$5,IF(D39=$B$6,F39/$C$6,IF(D39=$B$3,F39/$C$3,"ERROR!!!"))))) -> 0 | G39: =LARGE(E39:E43,1)+LARGE(E39:E43,2)+LARGE(E39:E43,3) -> 2.297916667 | H39: =G39/$G$4 -> 0.7879460089
C40: Marek Krempczyński | D40: HFT1 | E40: =IF(D40=$B$2,F40/$C$2,IF(D40=$B$4,F40/$C$4,IF(D40=$B$5,F40/$C$5,IF(D40=$B$6,F40/$C$6,IF(D40=$B$3,F40/$C$3,"ERROR!!!"))))) -> 0.9479166667 | F40: 91
C41: Michał Walaszkowski | D41: HFT1 | E41: =IF(D41=$B$2,F41/$C$2,IF(D41=$B$4,F41/$C$4,IF(D41=$B$5,F41/$C$5,IF(D41=$B$6,F41/$C$6,IF(D41=$B$3,F41/$C$3,"ERROR!!!"))))) -> 0.75 | F41: 72
D42: FT | E42: =IF(D42=$B$2,F42/$C$2,IF(D42=$B$4,F42/$C$4,IF(D42=$B$5,F42/$C$5,IF(D42=$B$6,F42/$C$6,IF(D42=$B$3,F42/$C$3,"ERROR!!!"))))) -> 0
C43: Tomasz Gacek | D43: FT | E43: =IF(D43=$B$2,F43/$C$2,IF(D43=$B$4,F43/$C$4,IF(D43=$B$5,F43/$C$5,IF(D43=$B$6,F43/$C$6,IF(D43=$B$3,F43/$C$3,"ERROR!!!"))))) -> 0.6 | F43: 57
A45: 7 | B45: Orzoł | C45: Cezary Bąbała | D45: HFT1 | E45: =IF(D45=$B$2,F45/$C$2,IF(D45=$B$4,F45/$C$4,IF(D45=$B$5,F45/$C$5,IF(D45=$B$6,F45/$C$6,IF(D45=$B$3,F45/$C$3,"ERROR!!!"))))) -> 0.96875 | F45: 93 | G45: =LARGE(E45:E49,1)+LARGE(E45:E49,2)+LARGE(E45:E49,3) -> 1.802083333 | H45: =G45/$G$4 -> 0.6179268339
C46: Wojciech Budziński | D46: HFT1 | E46: =IF(D46=$B$2,F46/$C$2,IF(D46=$B$4,F46/$C$4,IF(D46=$B$5,F46/$C$5,IF(D46=$B$6,F46/$C$6,IF(D46=$B$3,F46/$C$3,"ERROR!!!"))))) -> 0.8333333333 | F46: 80
D47: HFT1 | E47: =IF(D47=$B$2,F47/$C$2,IF(D47=$B$4,F47/$C$4,IF(D47=$B$5,F47/$C$5,IF(D47=$B$6,F47/$C$6,IF(D47=$B$3,F47/$C$3,"ERROR!!!"))))) -> 0
D48: HFT1 | E48: =IF(D48=$B$2,F48/$C$2,IF(D48=$B$4,F48/$C$4,IF(D48=$B$5,F48/$C$5,IF(D48=$B$6,F48/$C$6,IF(D48=$B$3,F48/$C$3,"ERROR!!!"))))) -> 0
D49: HFT1 | E49: =IF(D49=$B$2,F49/$C$2,IF(D49=$B$4,F49/$C$4,IF(D49=$B$5,F49/$C$5,IF(D49=$B$6,F49/$C$6,IF(D49=$B$3,F49/$C$3,"ERROR!!!"))))) -> 0
A51: 8 | D51: HFT1 | E51: =IF(D51=$B$2,F51/$C$2,IF(D51=$B$4,F51/$C$4,IF(D51=$B$5,F51/$C$5,IF(D51=$B$6,F51/$C$6,IF(D51=$B$3,F51/$C$3,"ERROR!!!"))))) -> 0 | G51: =LARGE(E51:E55,1)+LARGE(E51:E55,2)+LARGE(E51:E55,3) -> 0 | H51: =G51/$G$4 -> 0
D52: HFT1 | E52: =IF(D52=$B$2,F52/$C$2,IF(D52=$B$4,F52/$C$4,IF(D52=$B$5,F52/$C$5,IF(D52=$B$6,F52/$C$6,IF(D52=$B$3,F52/$C$3,"ERROR!!!"))))) -> 0
D53: FT | E53: =IF(D53=$B$2,F53/$C$2,IF(D53=$B$4,F53/$C$4,IF(D53=$B$5,F53/$C$5,IF(D53=$B$6,F53/$C$6,IF(D53=$B$3,F53/$C$3,"ERROR!!!"))))) -> 0
D54: HFT2 | E54: =IF(D54=$B$2,F54/$C$2,IF(D54=$B$4,F54/$C$4,IF(D54=$B$5,F54/$C$5,IF(D54=$B$6,F54/$C$6,IF(D54=$B$3,F54/$C$3,"ERROR!!!"))))) -> 0
D55: HFT1 | E55: =IF(D55=$B$2,F55/$C$2,IF(D55=$B$4,F55/$C$4,IF(D55=$B$5,F55/$C$5,IF(D55=$B$6,F55/$C$6,IF(D55=$B$3,F55/$C$3,"ERROR!!!"))))) -> 0
A57: 9 | D57: HFT1 | E57: =IF(D57=$B$2,F57/$C$2,IF(D57=$B$4,F57/$C$4,IF(D57=$B$5,F57/$C$5,IF(D57=$B$6,F57/$C$6,IF(D57=$B$3,F57/$C$3,"ERROR!!!"))))) -> 0 | G57: =LARGE(E57:E61,1)+LARGE(E57:E61,2)+LARGE(E57:E61,3) -> 0 | H57: =G57/$G$4 -> 0
D58: FT | E58: =IF(D58=$B$2,F58/$C$2,IF(D58=$B$4,F58/$C$4,IF(D58=$B$5,F58/$C$5,IF(D58=$B$6,F58/$C$6,IF(D58=$B$3,F58/$C$3,"ERROR!!!"))))) -> 0
D59: HFT1 | E59: =IF(D59=$B$2,F59/$C$2,IF(D59=$B$4,F59/$C$4,IF(D59=$B$5,F59/$C$5,IF(D59=$B$6,F59/$C$6,IF(D59=$B$3,F59/$C$3,"ERROR!!!"))))) -> 0
D60: HFT2 | E60: =IF(D60=$B$2,F60/$C$2,IF(D60=$B$4,F60/$C$4,IF(D60=$B$5,F60/$C$5,IF(D60=$B$6,F60/$C$6,IF(D60=$B$3,F60/$C$3,"ERROR!!!"))))) -> 0
D61: HFT2 | E61: =IF(D61=$B$2,F61/$C$2,IF(D61=$B$4,F61/$C$4,IF(D61=$B$5,F61/$C$5,IF(D61=$B$6,F61/$C$6,IF(D61=$B$3,F61/$C$3,"ERROR!!!"))))) -> 0
A63: 10 | D63: FT | E63: =IF(D63=$B$2,F63/$C$2,IF(D63=$B$4,F63/$C$4,IF(D63=$B$5,F63/$C$5,IF(D63=$B$6,F63/$C$6,IF(D63=$B$3,F63/$C$3,"ERROR!!!"))))) -> 0 | G63: =LARGE(E63:E67,1)+LARGE(E63:E67,2)+LARGE(E63:E67,3) -> 0 | H63: =G63/$G$4 -> 0
D64: FT | E64: =IF(D64=$B$2,F64/$C$2,IF(D64=$B$4,F64/$C$4,IF(D64=$B$5,F64/$C$5,IF(D64=$B$6,F64/$C$6,IF(D64=$B$3,F64/$C$3,"ERROR!!!"))))) -> 0
D65: FT | E65: =IF(D65=$B$2,F65/$C$2,IF(D65=$B$4,F65/$C$4,IF(D65=$B$5,F65/$C$5,IF(D65=$B$6,F65/$C$6,IF(D65=$B$3,F65/$C$3,"ERROR!!!"))))) -> 0
D66: FT | E66: =IF(D66=$B$2,F66/$C$2,IF(D66=$B$4,F66/$C$4,IF(D66=$B$5,F66/$C$5,IF(D66=$B$6,F66/$C$6,IF(D66=$B$3,F66/$C$3,"ERROR!!!"))))) -> 0
D67: FT | E67: =IF(D67=$B$2,F67/$C$2,IF(D67=$B$4,F67/$C$4,IF(D67=$B$5,F67/$C$5,IF(D67=$B$6,F67/$C$6,IF(D67=$B$3,F67/$C$3,"ERROR!!!"))))) -> 0
A69: 11 | D69: FT | E69: =IF(D69=$B$2,F69/$C$2,IF(D69=$B$4,F69/$C$4,IF(D69=$B$5,F69/$C$5,IF(D69=$B$6,F69/$C$6,IF(D69=$B$3,F69/$C$3,"ERROR!!!"))))) -> 0 | G69: =LARGE(E69:E73,1)+LARGE(E69:E73,2)+LARGE(E69:E73,3) -> 0 | H69: =G69/$G$4 -> 0
D70: FT | E70: =IF(D70=$B$2,F70/$C$2,IF(D70=$B$4,F70/$C$4,IF(D70=$B$5,F70/$C$5,IF(D70=$B$6,F70/$C$6,IF(D70=$B$3,F70/$C$3,"ERROR!!!"))))) -> 0
D71: FT | E71: =IF(D71=$B$2,F71/$C$2,IF(D71=$B$4,F71/$C$4,IF(D71=$B$5,F71/$C$5,IF(D71=$B$6,F71/$C$6,IF(D71=$B$3,F71/$C$3,"ERROR!!!"))))) -> 0
D72: FT | E72: =IF(D72=$B$2,F72/$C$2,IF(D72=$B$4,F72/$C$4,IF(D72=$B$5,F72/$C$5,IF(D72=$B$6,F72/$C$6,IF(D72=$B$3,F72/$C$3,"ERROR!!!"))))) -> 0
D73: FT | E73: =IF(D73=$B$2,F73/$C$2,IF(D73=$B$4,F73/$C$4,IF(D73=$B$5,F73/$C$5,IF(D73=$B$6,F73/$C$6,IF(D73=$B$3,F73/$C$3,"ERROR!!!"))))) -> 0
A75: 12 | D75: HFT1 | E75: =IF(D75=$B$2,F75/$C$2,IF(D75=$B$4,F75/$C$4,IF(D75=$B$5,F75/$C$5,IF(D75=$B$6,F75/$C$6,IF(D75=$B$3,F75/$C$3,"ERROR!!!"))))) -> 0 | G75: =LARGE(E75:E79,1)+LARGE(E75:E79,2)+LARGE(E75:E79,3) -> 0 | H75: =G75/$G$4 -> 0
D76: HFT1 | E76: =IF(D76=$B$2,F76/$C$2,IF(D76=$B$4,F76/$C$4,IF(D76=$B$5,F76/$C$5,IF(D76=$B$6,F76/$C$6,IF(D76=$B$3,F76/$C$3,"ERROR!!!"))))) -> 0
D77: HFT1 | E77: =IF(D77=$B$2,F77/$C$2,IF(D77=$B$4,F77/$C$4,IF(D77=$B$5,F77/$C$5,IF(D77=$B$6,F77/$C$6,IF(D77=$B$3,F77/$C$3,"ERROR!!!"))))) -> 0
D78: HFT1 | E78: =IF(D78=$B$2,F78/$C$2,IF(D78=$B$4,F78/$C$4,IF(D78=$B$5,F78/$C$5,IF(D78=$B$6,F78/$C$6,IF(D78=$B$3,F78/$C$3,"ERROR!!!"))))) -> 0
D79: HFT1 | E79: =IF(D79=$B$2,F79/$C$2,IF(D79=$B$4,F79/$C$4,IF(D79=$B$5,F79/$C$5,IF(D79=$B$6,F79/$C$6,IF(D79=$B$3,F79/$C$3,"ERROR!!!"))))) -> 0
A81: 13 | D81: HFT1 | E81: =IF(D81=$B$2,F81/$C$2,IF(D81=$B$4,F81/$C$4,IF(D81=$B$5,F81/$C$5,IF(D81=$B$6,F81/$C$6,IF(D81=$B$3,F81/$C$3,"ERROR!!!"))))) -> 0 | G81: =LARGE(E81:E85,1)+LARGE(E81:E85,2)+LARGE(E81:E85,3) -> 0 | H81: =G81/$G$4 -> 0
D82: HFT1 | E82: =IF(D82=$B$2,F82/$C$2,IF(D82=$B$4,F82/$C$4,IF(D82=$B$5,F82/$C$5,IF(D82=$B$6,F82/$C$6,IF(D82=$B$3,F82/$C$3,"ERROR!!!"))))) -> 0
D83: HFT1 | E83: =IF(D83=$B$2,F83/$C$2,IF(D83=$B$4,F83/$C$4,IF(D83=$B$5,F83/$C$5,IF(D83=$B$6,F83/$C$6,IF(D83=$B$3,F83/$C$3,"ERROR!!!"))))) -> 0
D84: HFT1 | E84: =IF(D84=$B$2,F84/$C$2,IF(D84=$B$4,F84/$C$4,IF(D84=$B$5,F84/$C$5,IF(D84=$B$6,F84/$C$6,IF(D84=$B$3,F84/$C$3,"ERROR!!!"))))) -> 0
D85: HFT1 | E85: =IF(D85=$B$2,F85/$C$2,IF(D85=$B$4,F85/$C$4,IF(D85=$B$5,F85/$C$5,IF(D85=$B$6,F85/$C$6,IF(D85=$B$3,F85/$C$3,"ERROR!!!"))))) -> 0

Sheet WYNIKI
B2: Drużyna | C2: %
A3: 1 | B3: =DRUŻYNY!K14 -> JURA TEAM | C3: =DRUŻYNY!L14 -> 2.916337719
A4: 2 | B4: =DRUŻYNY!K27 -> WKFT | C4: =DRUŻYNY!L27 -> 2.915789474
A5: 3 | B5: =DRUŻYNY!K15 -> AUTOS WIKING | C5: =DRUŻYNY!L15 -> 2.864583333
A6: 4 | B6: =DRUŻYNY!K28 -> DGST LOK Beaver | C6: =DRUŻYNY!L28 -> 2.841923318
A7: 5 | B7: =DRUŻYNY!K29 -> SG3M | C7: =DRUŻYNY!L29 -> 2.73870614
A8: 6 | B8: =DRUŻYNY!K30 -> WSST | C8: =DRUŻYNY!L30 -> 2.297916667
A9: 7 | B9: =DRUŻYNY!K17 -> Orzoł | C9: =DRUŻYNY!L17 -> 1.802083333
A10: 8 | B10: =DRUŻYNY!K31 -> 0 | C10: =DRUŻYNY!L31 -> 0
A11: 9 | B11: =DRUŻYNY!B69 -> 0 | C11: =DRUŻYNY!G69 -> 0
A12: 10 | B12: =DRUŻYNY!K18 -> 0 | C12: =DRUŻYNY!L18 -> 0
A13: 11 | B13: =DRUŻYNY!K16 -> 0 | C13: =DRUŻYNY!L16 -> 0
A14: 12 | B14: =DRUŻYNY!K19 -> 0 | C14: =DRUŻYNY!L19 -> 0
A15: 13 | B15: =[1]Drużyny!B81 -> 0 | C15: =DRUŻYNY!G81 -> 0
A16: 14
A17: 15
A18: 16
A19: 17
A20: 18
A21: 19
A22: 20
